bitfinex-derivatives/quotes_ETHF0:USTF0_20230401
["timestamp","ask_amount","ask_price","bid_price","bid_amount"]
[1680324952289,0.67415662,1827.9,1827.8,0.57151518]
[1680324953795,0.1011893,1827.9,1827.8,0.57151518]
[1680324954401,0.67415662,1827.9,1827.8,0.57151518]
[1680324956999,1.48715662,1827.9,1827.8,0.57151518]
[1680324957199,1.77415162,1827.9,1827.7,0.57151518]
[1680324957392,2.34720752,1827.9,1827.7,1.42878795]
[1680324957698,2.34728585,1827.9,1827.8,0.57151518]
[1680324958086,1.48732353,1827.9,1827.8,0.57151518]
[1680324958987,1.77415162,1827.9,1827.8,0.57151518]
[1680324963502,2.77415162,1827.9,1827.8,0.57151518]
[1680324963696,3.59115162,1827.9,1827.8,0.57151518]
[1680324963904,2.59115162,1827.9,1827.8,0.57151518]
[1680324965603,1.7311893,1827.9,1827.8,0.57151518]
[1680324966605,2.59153383,1827.9,1827.8,0.57151518]
[1680324966801,13.3760139,1827.9,1827.7,0.57151518]
[1680324967000,13.3760139,1827.9,1827.6,0.57151518]
[1680324967001,1.636,1827.8,1827.6,0.57151518]
[1680324967198,2.64,1827.7,1827.6,0.57151518]
[1680324967401,3.78726989,1827.7,1827.6,0.57151518]
[1680324967897,1.64,1827.7,1827.6,0.57151518]
[1680324968094,2.78726989,1827.7,1827.6,0.57151518]
[1680324968303,5.99506989,1827.7,1827.6,0.57151518]
[1680324969105,5.70808585,1827.7,1827.6,0.57151518]
[1680324973705,5.70808585,1827.7,1827.5,1.42878795]
[1680324973910,1.39320007,1827.6,1827.5,0.57151518]
[1680324975307,1.49812988,1827.6,1827.5,0.57151518]
[1680324985522,4.17841573,1827.6,1827.4,0.57151518]
[1680324985821,5.41888137,1827.5,1827.4,0.57151518]
[1680324986021,6.41888137,1827.5,1827.3,0.57151518]
[1680324986219,0.82,1827.4,1827.3,0.57151518]
[1680324990429,0.94513428,1827.4,1827.3,0.57151518]
[1680325003636,1.51821565,1827.4,1827.3,0.57151518]
[1680325004334,1.51821565,1827.4,1827.3,0.56389993]
[1680325011047,1.51821565,1827.4,1827.3,1.4211727]
[1680325012040,1.51821565,1827.4,1827.3,0.85727277]
[1680325019955,2.3785015,1827.4,1827.3,0.85727277]
[1680325021555,1.80542013,1827.4,1827.3,0.85727277]
[1680325023149,1.51892119,1827.4,1827.2,2.14331349]
[1680325023654,1.51892119,1827.4,1827.3,0.85992174]
[1680325023856,1.80542013,1827.4,1827.2,2.14331349]
[1680325024057,0.57385413,1827.3,1827.2,2.14331349]
[1680325024253,0.57385413,1827.3,1827.2,2.82192902]
[1680325024454,0.69916283,1827.3,1827.2,2.82192902]
[1680325025860,0.69916283,1827.3,1827.2,1.67861553]
[1680325026357,0.1253087,1827.3,1827.2,7.13520184]
[1680325026555,0.57385413,1827.4,1827.2,7.13520184]
[1680325026748,0.57385413,1827.4,1827.3,1.82539362]
[1680325026948,0.57385413,1827.4,1827.3,1.67861553]
[1680325027150,1.43413998,1827.5,1827.3,1.67861553]
[1680325027351,1.43417895,1827.5,1827.4,1.14663608]
[1680325027753,0.86028585,1827.5,1827.4,1.14663608]
[1680325032460,0.86028585,1827.5,1827.4,1.8251961]
[1680325032461,0.57401636,1827.5,1827.4,1.8251961]
[1680325032857,0.57401636,1827.5,1827.4,1.14663608]
[1680325033459,0.56734888,1827.5,1827.4,1.14663608]
[1680325035065,0.69271257,1827.5,1827.4,1.14663608]
[1680325047577,0.69271257,1827.5,1827.3,1.14663608]
[1680325047774,0.69271257,1827.5,1827.4,0.8596241]
[1680325050580,0.69271257,1827.5,1827.3,1.82521296]
[1680325050777,0.69271257,1827.5,1827.4,1.14663608]
[1680325052177,0.12536369,1827.5,1827.4,4.35443608]
[1680325052376,0.12536369,1827.5,1827.4,5.85299041]
[1680325052678,1.68028585,1827.7,1827.4,5.85299041]
[1680325052886,1.68028585,1827.7,1827.5,1.85955491]
[1680325058793,1.68028585,1827.7,1827.6,0.85955491]
[1680325062094,1.6806033,1827.7,1827.5,0.85955491]
[1680325062298,0.8606033,1827.6,1827.5,0.85955491]
[1680325062801,1.6806033,1827.6,1827.5,0.85987525]
[1680325065105,1.80611982,1827.6,1827.5,0.85987525]
[1680325066897,1.80611982,1827.6,1827.4,1.14663608]
[1680325070301,0.8606033,1827.5,1827.4,1.14663608]
[1680325071896,1.6806033,1827.5,1827.4,1.14663608]
[1680325072097,1.6806033,1827.5,1827.4,0.86095509]
[1680325072399,1.96726989,1827.5,1827.4,0.86095509]
[1680325073496,0.82,1827.5,1827.4,0.86095509]
[1680325076809,1.68096787,1827.5,1827.4,0.86095509]
[1680325077013,2.49296787,1827.5,1827.4,0.86095509]
[1680325079408,5.98706989,1827.5,1827.3,0.86095509]
[1680325079607,1.6739209,1827.4,1827.2,1.14663608]
[1680325080112,1.6739209,1827.4,1827.3,0.86065248]
[1680325080315,1.6739209,1827.4,1827.3,1.14663608]
[1680325082809,0.813,1827.4,1827.3,1.14663608]
[1680325083010,1.6739209,1827.4,1827.3,1.14663608]
[1680325083312,0.813,1827.4,1827.3,1.14663608]
[1680325084714,2.4909209,1827.4,1827.3,0.86052327]
[1680325085511,2.49081589,1827.4,1827.3,0.86052327]
[1680325085814,1.63,1827.4,1827.3,0.86052327]
[1680325086015,2.49081471,1827.4,1827.3,0.86052327]
[1680325086316,1.63,1827.4,1827.2,0.86052327]
[1680325086512,0.82,1827.3,1827.2,0.86052327]
[1680325087013,0.82,1827.3,1827.1,1.8252586]
[1680325087214,0.86060344,1827.4,1827.1,1.8252586]
[1680325087521,0.86060344,1827.4,1827.2,0.86034024]
[1680325087710,0.82,1827.3,1827.2,0.86034024]
[1680325088017,0.82,1827.3,1827.1,2.8252586]
[1680325088220,0.82,1827.2,1827.1,2.8252586]
[1680325088515,0.82,1827.2,1827.1,3.5039004]
[1680325089917,0.82,1827.2,1827.1,3.50390645]
[1680325090518,0.82,1827.2,1827.1,2.8252586]
[1680325091521,0.82,1827.2,1827.1,1.8252586]
[1680325095118,0.97981625,1827.2,1827.1,1.8252586]
[1680325105824,0.97981625,1827.2,1827.1,2.8252586]
[1680325107026,0.15981625,1827.2,1827.1,2.8252586]
[1680325108527,0.15981625,1827.2,1827.1,3.50389299]
[1680325108732,0.15981625,1827.2,1827.1,4.32289299]
[1680325108921,1.67360344,1827.5,1827.1,4.32289299]
[1680325109120,1.67360344,1827.5,1827.3,0.85998568]
[1680325109333,0.07151091,1827.4,1827.3,0.85998568]
[1680325109820,0.07151091,1827.4,1827.3,1.85998568]
[1680325111927,0.07151091,1827.4,1827.3,7.76059539]
[1680325114835,0.07151091,1827.4,1827.3,6.90060971]
[1680325116837,0.93211435,1827.4,1827.3,8.04724579]
[1680325118137,0.07151091,1827.4,1827.3,8.04724579]
[1680325125341,0.07151091,1827.4,1827.3,8.72582726]
[1680325128347,0.07151091,1827.4,1827.3,8.04724579]
[1680325132157,0.07151091,1827.4,1827.3,1.14663608]
[1680325132445,1.75211435,1827.4,1827.3,0.8603698]
[1680325153257,1.75211435,1827.4,1827.2,2.14663608]
[1680325153557,1.39404182,1827.3,1827.2,2.14663608]
[1680325153755,1.45927097,1827.3,1827.2,2.82525751]
[1680325154050,1.45927097,1827.3,1827.2,3.10740774]
[1680325154357,0.63927097,1827.3,1827.2,1.67862143]
[1680325155053,0.06522915,1827.3,1827.2,3.10740774]
[1680325155252,1.43464526,1827.4,1827.2,3.10740774]
[1680325155458,1.43464526,1827.4,1827.3,1.14690024]
[1680325159159,0.57404182,1827.4,1827.3,5.03329281]
[1680325159855,1.43464526,1827.4,1827.3,1.14690024]
[1680325160158,0.57404182,1827.4,1827.3,1.14690024]
[1680325163562,0.57404182,1827.4,1827.3,1.82548977]
[1680325163758,0.57404182,1827.4,1827.3,5.58160972]
[1680325164060,0.57404182,1827.4,1827.3,4.90302019]
[1680325165369,0.57404182,1827.4,1827.3,5.58161053]
[1680325166263,0.57404182,1827.4,1827.3,2.37381053]
[1680325169056,0.57404182,1827.4,1827.3,1.14690024]
[1680325169365,0.86060344,1827.4,1827.3,1.14690024]
[1680325169858,0.86060344,1827.4,1827.2,1.14690024]
[1680325170064,0.57400983,1827.3,1827.2,1.8255177]
[1680325170266,0.63932088,1827.3,1827.2,1.8255177]
[1680325171564,1.45532088,1827.3,1827.2,1.8255177]
[1680325172360,0.63932088,1827.3,1827.2,0.67861746]
[1680325172564,0.63932088,1827.3,1827.2,3.10740377]
[1680325172965,0.63932088,1827.3,1827.2,9.03193126]
[1680325176661,0.06531105,1827.3,1827.2,13.05973126]
[1680325177061,0.57064926,1827.4,1827.2,13.05473126]
[1680325177262,0.57064926,1827.4,1827.3,2.82525901]
[1680325183766,0.57064926,1827.4,1827.3,2.82515574]
[1680325184167,0.57064926,1827.4,1827.2,6.45158631]
[1680325184168,4.59844926,1827.4,1827.2,1.14653828]
[1680325184374,1.14726989,1827.4,1827.3,0.86017591]
[1680325184570,2.96026989,1827.4,1827.3,0.86017591]
[1680325184782,1.96026989,1827.4,1827.3,0.86017591]
[1680325185387,2.07550501,1827.4,1827.3,0.86017591]
[1680325185591,2.07550501,1827.4,1827.3,0.85331002]
[1680325187675,0.92823512,1827.4,1827.3,0.85331002]
[1680325194286,2.07550501,1827.4,1827.3,0.85331002]
[1680325194488,0.92823512,1827.4,1827.3,0.85331002]
[1680325196591,1.78915083,1827.4,1827.3,0.85331002]
[1680325197896,8.37250501,1827.4,1827.3,0.32333011]
[1680325198092,11.86723726,1827.4,1827.2,0.32333011]
[1680325198288,2.96797974,1827.3,1827.2,0.32333011]
[1680325198690,1.96797974,1827.3,1827.2,0.32333011]
[1680325200593,0.82,1827.3,1827.2,0.32333011]
[1680325201299,1.68058103,1827.3,1827.2,0.32333011]
[1680325206096,1.79421974,1827.3,1827.2,0.31196624]
[1680325206297,1.79421974,1827.3,1827.2,0.30711276]
[1680325206498,2.79421974,1827.3,1827.2,0.29988729]
[1680325206895,2.79421974,1827.3,1827.2,0.29208104]
[1680325207199,3.60621974,1827.3,1827.2,0.28544472]
[1680325207406,2.60621974,1827.3,1827.2,0.27880365]
[1680325207703,2.60621974,1827.3,1827.2,0.2716976]
[1680325207905,2.60621974,1827.3,1827.2,0.26526837]
[1680325208104,2.60621974,1827.3,1827.2,0.25856668]
[1680325208318,2.60621974,1827.3,1827.2,0.25271221]
[1680325208502,2.60621974,1827.3,1827.2,0.24616148]
[1680325215307,0.10444751,1827.3,1827.2,0.82]
[1680325215610,1.68017756,1827.7,1827.2,9.75946003]
[1680325215904,1.68017756,1827.7,1827.4,3.2078]
[1680325216109,1.68017756,1827.7,1827.5,1.0]
[1680325217009,0.82,1827.6,1827.5,1.0]
[1680325217612,0.82,1827.6,1827.5,1.04424974]
[1680325218411,0.82,1827.6,1827.5,0.04424974]
[1680325219310,1.0,1827.5,1827.1,1.82357172]
[1680325219507,0.82,1827.2,1827.1,1.82357172]
[1680325219804,0.82,1827.2,1827.1,5.03137172]
[1680325220012,0.82,1827.2,1827.1,10.9438336]
[1680325220205,0.82,1827.2,1827.1,11.62245987]
[1680325222414,1.088,1827.2,1827.1,11.62245987]
[1680325222616,1.088,1827.2,1827.1,10.9438336]
[1680325222818,1.088,1827.2,1827.1,11.62246063]
[1680325227122,1.094,1827.3,1827.1,11.62246063]
[1680325227315,1.094,1827.3,1827.1,10.9438336]
[1680325227816,1.094,1827.3,1827.1,5.03137172]
[1680325229817,1.094,1827.3,1827.2,1.0]
[1680325237525,1.094,1827.3,1827.2,2.1449492]
[1680325242829,1.094,1827.3,1827.2,1.1449492]
[1680325243034,1.094,1827.3,1827.2,3.2078]
[1680325244735,1.094,1827.3,1827.2,4.3527492]
[1680325254045,1.094,1827.3,1827.2,5.03135482]
[1680325257044,0.85990056,1827.5,1827.2,5.03135482]
[1680325257045,1.094,1827.4,1827.2,5.03135482]
[1680325257341,1.094,1827.4,1827.3,1.85947348]
[1680325258035,1.094,1827.4,1827.3,2.1449492]
[1680325259942,1.094,1827.4,1827.3,2.82352766]
[1680325264251,1.95390056,1827.4,1827.3,2.82352766]
[1680325264648,1.95390056,1827.4,1827.3,1.82352766]
[1680325271951,1.95390056,1827.4,1827.3,1.82361081]
[1680325272154,3.04790056,1827.4,1827.3,1.1449492]
[1680325272452,2.188,1827.4,1827.2,1.1449492]
[1680325272654,1.95529018,1827.3,1827.2,1.1449492]
[1680325272855,1.094,1827.3,1827.1,2.10742303]
[1680325273055,1.95529018,1827.4,1827.2,2.10742303]
[1680325273252,1.95529018,1827.4,1827.3,1.14690784]
[1680325273453,3.04929018,1827.4,1827.3,1.14690784]
[1680325277064,1.95529018,1827.4,1827.3,1.14690784]
[1680325283755,1.95529018,1827.4,1827.3,2.82550493]
[1680325287261,1.95529018,1827.4,1827.3,1.82550493]
[1680325287462,1.68029018,1827.4,1827.3,1.82550493]
[1680325295675,1.68029018,1827.4,1827.3,1.14690784]
[1680325297275,1.632,1827.4,1827.3,1.14690784]
[1680325297575,3.77997974,1827.4,1827.3,0.86033937]
[1680325297775,2.77997974,1827.4,1827.3,0.86033937]
[1680325299569,5.6578,1827.4,1827.2,0.86033937]
[1680325299766,2.79048167,1827.3,1827.2,0.86033937]
[1680325300075,3.79048167,1827.3,1827.2,0.86033937]
[1680325300871,2.79048167,1827.3,1827.2,0.86033937]
[1680325302278,2.79048167,1827.3,1827.0,0.67870198]
[1680325302279,2.79048167,1827.3,1827.1,0.86033937]
[1680325302481,2.49495319,1827.2,1827.1,0.86033937]
[1680325304279,7.97195319,1827.2,1827.1,0.86033937]
[1680325304485,2.78248167,1827.2,1827.0,0.86033937]
[1680325304779,1.67676238,1827.1,1827.0,0.86033937]
[1680325306381,1.67476238,1827.1,1827.0,0.86033937]
[1680325306679,1.38760638,1827.1,1827.0,0.86033937]
[1680325307182,1.38860638,1827.1,1827.0,0.86033937]
[1680325308988,1.38860638,1827.1,1826.9,4.06813937]
[1680325309179,1.38860638,1827.1,1827.0,0.86033937]
[1680325309378,1.38860638,1827.1,1826.9,4.06813937]
[1680325323689,0.815,1827.1,1826.9,4.06813937]
[1680325323990,0.815,1827.1,1826.9,0.86033937]
[1680325324584,1.38860638,1827.1,1826.9,0.86033937]
[1680325324890,0.815,1827.1,1826.9,0.86033937]
[1680325327591,1.38860638,1827.1,1826.8,0.86033937]
[1680325328591,1.38860638,1827.1,1826.9,0.57247522]
[1680325329894,1.38860638,1827.1,1826.9,1.43281459]
[1680325330892,1.38860638,1827.1,1827.0,0.57247522]
[1680325330893,0.815,1827.1,1827.0,0.57247522]
[1680325335792,1.38860638,1827.1,1827.0,0.57247522]
[1680325338500,4.0228,1827.1,1826.9,0.57247522]
[1680325338690,2.67913515,1827.0,1826.9,0.57247522]
[1680325338884,2.67913515,1827.0,1826.8,1.43281459]
[1680325339198,1.38842838,1826.9,1826.8,0.57247522]
[1680325339393,1.38842838,1826.9,1826.8,0.86033937]
[1680325340298,1.38842838,1826.9,1826.8,1.43343779]
[1680325341298,1.38842838,1826.9,1826.8,0.86033937]
[1680325345305,1.67513515,1826.9,1826.8,0.86033937]
[1680325345604,2.2490387,1826.9,1826.8,0.86033937]
[1680325346805,1.38890355,1826.9,1826.8,0.86033937]
[1680325347005,2.20190355,1826.9,1826.8,0.86033937]
[1680325348706,3.01990355,1826.9,1826.8,0.86033937]
[1680325348905,6.51393515,1826.9,1826.8,0.57383583]
[1680325349310,2.48813515,1826.9,1826.8,0.86033937]
[1680325352710,2.57828318,1826.9,1826.8,0.86033937]
[1680325355312,0.95028318,1826.9,1826.8,0.86033937]
[1680325355617,0.09014803,1826.9,1826.8,6.17370377]
[1680325355812,0.09014803,1826.9,1826.8,5.70754301]
[1680325356219,0.09014803,1826.9,1826.8,6.85474493]
[1680325357111,0.09014803,1826.9,1826.8,5.70754301]
[1680325357318,0.09014803,1826.9,1826.8,7.13632932]
[1680325357516,1.43383408,1827.1,1826.8,5.70754301]
[1680325357718,0.57369893,1827.0,1826.9,0.86036964]
[1680325362218,0.57369893,1827.0,1826.8,6.1759497]
[1680325362418,0.57369893,1827.0,1826.9,0.86038478]
[1680325363221,0.56610947,1827.0,1826.9,0.86038478]
[1680325367024,1.38710947,1827.0,1826.9,0.86038478]
[1680325367624,1.4800596,1827.0,1826.9,0.86038478]
[1680325368925,2.34019475,1827.0,1826.9,0.86038478]
[1680325372723,1.4800596,1827.0,1826.9,0.86038478]
[1680325373129,2.34019475,1827.0,1826.9,0.86038478]
[1680325376035,1.4800596,1827.0,1826.9,0.86038478]
[1680325376728,2.34019475,1827.0,1826.9,0.86038478]
[1680325376926,1.4800596,1827.0,1826.9,0.86038478]
[1680325377231,1.4750596,1827.0,1826.9,0.86038478]
[1680325379235,2.33519475,1827.0,1826.9,0.86038478]
[1680325380934,1.4750596,1827.0,1826.8,1.1471497]
[1680325382640,2.33519475,1827.0,1826.8,1.1471497]
[1680325386839,2.33519475,1827.0,1826.9,1.1471497]
[1680325387040,1.76908528,1827.0,1826.9,1.1471497]
[1680325388139,1.76908528,1827.0,1826.8,1.1471497]
[1680325388642,1.76908528,1827.0,1826.9,1.1471497]
[1680325390340,1.76908528,1827.0,1826.8,1.1471497]
[1680325392147,1.76908528,1827.0,1826.9,1.1471497]
[1680325393244,1.76908528,1827.0,1826.8,1.1471497]
[1680325399051,1.76908528,1827.0,1826.9,1.1471497]
[1680325399252,1.77408528,1827.0,1826.9,1.1471497]
[1680325399749,1.77408528,1827.0,1826.9,0.61745802]
[1680325399750,2.59308528,1827.0,1826.9,0.61745802]
[1680325399952,29.57379309,1827.0,1826.6,0.00420671]
[1680325400151,5.99726711,1826.7,1826.6,0.00420671]
[1680325400449,5.99726711,1826.7,1826.3,4.63658631]
[1680325400655,0.817,1826.5,1826.4,1.6789103]
[1680325400854,0.817,1826.5,1826.4,3.10769661]
[1680325401953,0.817,1826.5,1826.4,1.0]
[1680325402754,0.817,1826.5,1826.4,1.67889836]
[1680325403952,0.816,1826.5,1826.2,1.42878631]
[1680325404153,0.821,1826.3,1826.2,4.64189557]
[1680325404355,0.821,1826.3,1826.2,5.32081554]
[1680325404751,0.96733339,1826.3,1826.2,5.32081554]
[1680325404951,0.96733339,1826.3,1826.2,6.32081554]
[1680325405347,0.821,1826.3,1826.2,6.32081554]
[1680325405551,0.96733715,1826.3,1826.2,6.32081554]
[1680325406656,0.96733715,1826.3,1826.2,2.11301554]
[1680325406856,0.96733715,1826.3,1826.2,5.32081554]
[1680325407854,0.96733715,1826.3,1826.2,3.88671997]
[1680325413761,0.96733715,1826.3,1826.2,3.2078]
[1680325414563,0.96733715,1826.3,1826.2,3.75411267]
[1680325415163,0.14633715,1826.3,1826.2,6.25402843]
[1680325415465,0.817,1826.6,1826.2,6.25402843]
[1680325415667,0.817,1826.6,1826.4,3.2078]
[1680325415865,0.14638892,1826.5,1826.4,3.2078]
[1680325423372,0.14638892,1826.5,1826.4,4.0228]
[1680325423572,0.821,1826.8,1826.5,1.0]
[1680325423770,0.821,1826.8,1826.7,3.2078]
[1680325424164,0.821,1826.8,1826.7,4.2078]
[1680325426978,1.35954772,1826.9,1826.7,4.2078]
[1680325427274,0.815,1826.9,1826.5,1.816]
[1680325427471,0.815,1826.9,1826.6,3.2078]
[1680325430279,1.36121911,1826.9,1826.6,3.2078]
[1680325431178,0.07199914,1826.8,1826.6,3.2078]
[1680325431571,1.36121911,1826.9,1826.6,3.2078]
[1680325437084,0.815,1826.8,1826.6,3.2078]
[1680325442590,0.0720539,1826.7,1826.6,3.2078]
[1680325442790,0.0720539,1826.7,1826.6,4.35350201]
[1680325443092,0.0720539,1826.7,1826.6,3.2078]
[1680325444188,0.0720539,1826.7,1826.5,1.14570201]
[1680325444786,0.0720539,1826.7,1826.6,5.8964152]
[1680325446991,0.8860539,1826.7,1826.6,5.8964152]
[1680325459805,0.8860539,1826.7,1826.6,7.04211721]
[1680325466010,1.74740948,1826.7,1826.6,7.04211721]
[1680325466705,0.8860539,1826.7,1826.6,7.04211721]
[1680325467611,1.74740948,1826.7,1826.6,7.04211721]
[1680325467802,1.74740948,1826.7,1826.6,1.8245563]
[1680325468003,1.74740948,1826.7,1826.6,1.14570201]
[1680325489036,0.8860539,1826.7,1826.6,1.14570201]
[1680325489234,2.03452101,1826.7,1826.6,1.14570201]
[1680325489630,0.8860539,1826.7,1826.6,1.14570201]
[1680325490036,2.03452101,1826.7,1826.6,1.14570201]
[1680325491536,0.8860539,1826.7,1826.6,1.14570201]
[1680325496941,1.0,1826.6,1826.5,0.86143045]
[1680325497245,2.7809515,1826.6,1826.5,0.86143045]
[1680325499338,2.7809515,1826.6,1826.4,0.86143045]
[1680325499548,1.1489515,1826.6,1826.5,0.86143045]
[1680325499845,1.632,1826.6,1826.4,0.86143045]
[1680325500044,1.67712006,1826.5,1826.4,0.86143045]
[1680325504647,0.819,1826.4,1826.3,0.86143045]
[1680325504848,2.21190838,1826.4,1826.3,0.86143045]
[1680325505150,3.07302844,1826.4,1826.3,0.86143045]
[1680325505454,2.49912006,1826.4,1826.3,0.86143045]
[1680325506044,3.0728172,1826.4,1826.2,1.86143045]
[1680325506251,0.815,1826.3,1826.2,0.86143045]
[1680325506442,1.38869714,1826.3,1826.2,0.86143045]
[1680325507551,0.815,1826.3,1826.2,0.86143045]
[1680325513461,0.11134777,1826.4,1826.2,1.49992279]
[1680325513752,1.39469714,1826.6,1826.3,4.2078]
[1680325513958,1.39469714,1826.6,1826.5,3.2078]
[1680325514457,1.39469714,1826.6,1826.5,4.2078]
[1680325515653,1.39469714,1826.6,1826.5,1.0]
[1680325516956,0.57369714,1826.6,1826.5,1.0]
[1680325517253,0.57369714,1826.6,1826.4,1.85918514]
[1680325517459,0.819,1826.4,1826.3,4.06698514]
[1680325517752,1.38769714,1826.5,1826.3,4.06698514]
[1680325517753,1.47201887,1826.5,1826.3,4.06698514]
[1680325519157,1.47201887,1826.5,1826.2,0.85918514]
[1680325519458,1.47201887,1826.5,1826.2,4.06698514]
[1680325520057,1.47201887,1826.5,1826.3,0.57289646]
[1680325520257,5.54093893,1826.5,1826.3,0.57289646]
[1680325520458,2.33313893,1826.5,1826.3,0.57289646]
[1680325522461,0.57369714,1826.4,1826.3,0.57289646]
[1680325522660,1.47201887,1826.5,1826.3,0.57289646]
[1680325522962,0.65101887,1826.5,1826.4,3.78065772]
[1680325523161,0.07732173,1826.5,1826.4,9.77404131]
[1680325523960,6.37532173,1826.5,1826.4,9.77404131]
[1680325524261,1.47201887,1826.5,1826.4,0.57285772]
[1680325524655,1.47201887,1826.5,1826.4,1.57285772]
[1680325525357,1.47201887,1826.5,1826.4,0.57285772]
[1680325530460,1.47201887,1826.5,1826.4,6.80584228]
[1680325532163,2.33313893,1826.5,1826.4,6.80584228]
[1680325532364,1.47201887,1826.5,1826.4,6.80584228]
[1680325533470,2.33313893,1826.5,1826.4,6.80584228]
[1680325534670,1.75944179,1826.5,1826.4,6.80584228]
[1680325535967,1.75944179,1826.5,1826.4,0.57285772]
[1680325536169,0.93844179,1826.5,1826.4,0.57285772]
[1680325536368,0.07732173,1826.5,1826.4,4.2078]
[1680325536570,0.07732173,1826.5,1826.4,11.07478889]
[1680325536771,0.57381872,1826.6,1826.4,11.07478889]
[1680325536974,0.57381872,1826.6,1826.5,1.85972312]
[1680325537570,0.86112006,1826.6,1826.4,1.96199795]
[1680325537769,0.57388011,1826.5,1826.3,4.35379795]
[1680325538276,0.06606834,1826.4,1826.3,4.35379795]
[1680325538467,0.06606834,1826.4,1826.3,5.03273406]
[1680325538768,0.06606834,1826.4,1826.3,7.00452752]
[1680325538965,0.06606834,1826.4,1826.3,10.21232752]
[1680325539563,0.06606834,1826.4,1826.3,10.89127104]
[1680325541668,0.63994845,1826.4,1826.3,10.89127104]
[1680325541877,1.7441884,1826.4,1826.2,1.14599795]
[1680325542073,0.57417979,1826.3,1826.2,1.82497637]
[1680325542375,0.57417979,1826.3,1826.2,1.8249834]
[1680325542878,0.57417979,1826.3,1826.2,1.14599795]
[1680325544173,0.57417979,1826.3,1826.2,1.8249848]
[1680325544371,0.57417979,1826.3,1826.2,1.14599795]
[1680325546973,1.39517979,1826.3,1826.2,1.14599795]
[1680325547373,1.46170515,1826.3,1826.2,1.14599795]
[1680325558184,1.45570515,1826.3,1826.2,1.14599795]
[1680325558483,1.45570515,1826.3,1826.2,0.57388446]
[1680325558484,2.03047686,1826.3,1826.2,0.57388446]
[1680325562291,2.05778917,1826.3,1826.2,0.57388446]
[1680325564088,0.90883767,1826.3,1826.2,0.57388446]
[1680325564585,1.44613408,1826.3,1826.2,0.57388446]
[1680325566183,2.30706593,1826.3,1826.2,0.57388446]
[1680325577400,2.30706593,1826.3,1826.1,0.57388446]
[1680325577601,1.39477088,1826.2,1826.1,0.57388446]
[1680325577898,1.48868584,1826.2,1825.9,5.35379795]
[1680325578501,1.48868584,1826.2,1826.0,6.29221642]
[1680325579706,1.48868584,1826.2,1826.1,0.57334249]
[1680325580004,1.48868584,1826.2,1826.0,6.29221642]
[1680325580205,1.48868584,1826.2,1826.1,0.57336023]
[1680325580502,1.48868584,1826.2,1826.0,6.29221642]
[1680325581404,1.48868584,1826.2,1826.1,3.2078]
[1680325581601,1.48868584,1826.2,1826.1,4.2078]
[1680325583205,0.66768584,1826.2,1826.1,4.2078]
[1680325583399,0.09391496,1826.2,1826.1,5.35379795]
[1680325583602,0.09391496,1826.2,1826.1,4.2078]
[1680325584107,0.09391496,1826.2,1826.1,5.35379795]
[1680325585002,0.09391496,1826.2,1826.1,4.2078]
[1680325585410,0.09391496,1826.2,1826.1,5.35379795]
[1680325586408,0.66768584,1826.2,1826.1,5.35379795]
[1680325589004,0.66768584,1826.2,1826.1,1.14599795]
[1680325589211,0.66768584,1826.2,1826.0,2.96699795]
[1680325589910,0.66768584,1826.2,1826.1,5.86615692]
[1680325590910,0.66768584,1826.2,1826.1,7.01215487]
[1680325596607,1.68193185,1826.3,1826.2,1.0]
[1680325596608,0.86093185,1826.3,1826.2,1.0]
[1680325596910,0.0433359,1826.3,1826.2,9.2196031]
[1680325597112,0.86093185,1826.4,1826.2,8.3986031]
[1680325597515,0.86093185,1826.4,1826.3,0.86049266]
[1680325597912,0.86093185,1826.4,1826.3,6.71506236]
[1680325601212,1.9659515,1826.5,1826.3,6.71506236]
[1680325601414,1.9659515,1826.5,1826.4,0.57370848]
[1680325602114,1.96554653,1826.5,1826.4,0.57370848]
[1680325603017,1.96554653,1826.5,1826.4,1.57370848]
[1680325603619,1.96554653,1826.5,1826.4,0.57370848]
[1680325604220,1.99907892,1826.5,1826.4,0.57370848]
[1680325607023,1.99607892,1826.5,1826.4,0.57370848]
[1680325614930,1.99607892,1826.5,1826.4,6.92573354]
[1680325615628,1.70876877,1826.5,1826.4,7.21251772]
[1680325617135,0.89476877,1826.5,1826.4,7.21251772]
[1680325620135,0.89476877,1826.5,1826.4,7.78626037]
[1680325620432,0.89476877,1826.5,1826.4,7.78627772]
[1680325620734,0.89476877,1826.5,1826.4,7.21251772]
[1680325624033,0.89476877,1826.5,1826.4,7.78628364]
[1680325624437,0.89476877,1826.5,1826.4,7.21251772]
[1680325625638,0.89476877,1826.5,1826.4,7.78631581]
[1680325626236,0.03353239,1826.5,1826.4,7.21251772]
[1680325626433,0.03353239,1826.5,1826.4,7.78635281]
[1680325626736,0.03353239,1826.5,1826.4,7.21251772]
[1680325626935,0.03353239,1826.5,1826.4,7.78634334]
[1680325630235,0.89475371,1826.5,1826.4,7.21251772]
[1680325630635,0.03353239,1826.5,1826.4,7.21251772]
[1680325631148,0.03353239,1826.5,1826.4,7.78638223]
[1680325631935,0.03353239,1826.5,1826.4,7.21251772]
[1680325632843,0.03353239,1826.5,1826.4,7.78636698]
[1680325633044,0.03353239,1826.5,1826.4,7.21251772]
[1680325634047,0.03353239,1826.5,1826.4,7.78636705]
[1680325634248,0.03353239,1826.5,1826.4,7.21251772]
[1680325635942,0.03353239,1826.5,1826.4,7.78637892]
[1680325636148,0.89483006,1826.5,1826.4,7.21251772]
[1680325636850,0.03353239,1826.5,1826.4,7.21251772]
[1680325637046,0.85453239,1826.5,1826.4,7.21251772]
[1680325638038,1.71583501,1826.5,1826.4,7.21251772]
[1680325643252,0.85453239,1826.5,1826.4,7.21251772]
[1680325648254,2.00307892,1826.5,1826.4,7.21251772]
[1680325650155,2.00307892,1826.5,1826.4,0.86049266]
[1680325654854,0.85453239,1826.5,1826.3,4.35379795]
[1680325655160,1.18207892,1826.5,1826.4,7.17948308]
[1680325655360,1.99907892,1826.5,1826.4,7.17948308]
[1680325656867,1.99907892,1826.5,1826.4,0.86114541]
[1680325657158,4.05833239,1826.5,1826.4,0.57420061]
[1680325657359,5.49391942,1826.5,1826.4,0.57420061]
[1680325658066,5.49391942,1826.5,1826.4,0.57156269]
[1680325658261,5.60708902,1826.5,1826.4,0.5694068]
[1680325658459,19.74615486,1826.5,1826.4,0.5670976]
[1680325658763,18.74615486,1826.5,1826.4,0.5670976]
[1680325659064,5.60708902,1826.5,1826.4,0.56490417]
[1680325659270,0.821,1826.4,1826.3,0.86114541]
[1680325659567,3.82597021,1826.4,1826.2,0.86114541]
[1680325659763,1.680649,1826.3,1826.2,0.86114541]
[1680325660268,1.680649,1826.3,1826.1,1.82502768]
[1680325660470,1.680649,1826.3,1826.2,0.86130235]
[1680325665673,1.76236852,1826.3,1826.2,0.86130235]
[1680325685582,0.82,1826.2,1826.1,0.86130235]
[1680325685787,2.502649,1826.2,1826.1,0.86130235]